bitfinex/quotes_BTCUSD_20250204
["timestamp","ask_amount","ask_price","bid_price","bid_amount"]
[1738682065888,0.00309285,99345.0,99327.0,0.201355]
[1738682066140,0.01,99362.0,99328.0,0.10359299]
[1738682066375,0.08030355,99363.0,99347.0,0.150985]
[1738682066584,0.08030355,99363.0,99348.0,0.10238506]
[1738682066803,0.09030355,99363.0,99348.0,0.10238506]
[1738682067027,0.00309285,99369.0,99348.0,0.10238506]
[1738682067235,0.00309285,99359.0,99348.0,0.10238506]
[1738682067439,0.201312,99348.0,99317.0,0.201374]
[1738682067644,0.201322,99343.0,99327.0,0.10338506]
[1738682067844,0.151014,99329.0,99327.0,0.001]
[1738682068065,0.00309285,99359.0,99345.0,0.150988]
[1738682068269,0.00309285,99356.0,99329.0,0.00120782]
[1738682068473,0.00309285,99334.0,99327.0,0.001]
[1738682068674,0.00309285,99328.0,99327.0,0.001]
[1738682069093,0.00309285,99326.0,99314.0,0.20138]
[1738682069299,0.00309285,99321.0,99304.0,0.15105]
[1738682069502,0.00309285,99321.0,99304.0,0.00120824]
[1738682069707,0.00309285,99321.0,99311.0,0.201386]
[1738682069921,0.00309285,99321.0,99288.0,0.201433]
[1738682069922,0.01,99322.0,99289.0,0.15]
[1738682070135,0.00147569,99331.0,99292.0,0.00120818]
[1738682070136,0.16411785,99321.0,99292.0,0.00120818]
[1738682070339,0.16411785,99321.0,99293.0,0.00120835]
[1738682070616,0.01309285,99321.0,99320.0,0.0011072]
[1738682070806,0.01309285,99321.0,99320.0,0.0001072]
[1738682071003,0.15411785,99321.0,99320.0,0.0001072]
[1738682071218,0.16559354,99321.0,99320.0,0.0001072]
[1738682071429,0.32480955,99321.0,99320.0,0.0001072]
[1738682071678,0.32333386,99321.0,99320.0,0.0001072]
[1738682072102,0.00309285,99293.0,99239.0,0.302297]
[1738682072306,0.00309285,99282.0,99280.0,0.151086]
[1738682072518,0.00309285,99293.0,99271.0,0.00120867]
[1738682072723,0.00309285,99291.0,99272.0,0.10238506]
[1738682072925,0.00309285,99291.0,99286.0,0.151077]
[1738682073136,0.201407,99302.0,99286.0,0.151077]
[1738682073137,0.00147569,99301.0,99286.0,0.10238506]
[1738682073352,0.01,99298.0,99286.0,0.10238506]
[1738682073566,0.00014066,99301.0,99287.0,0.10238506]
[1738682073764,0.00014066,99301.0,99298.0,0.151059]
[1738682073965,0.01,99298.0,99287.0,0.10238506]
[1738682074200,0.00309285,99279.0,99249.0,0.201513]
[1738682074326,0.00309285,99279.0,99250.0,0.10359377]
[1738682074548,0.00309285,99272.0,99250.0,0.10359377]
[1738682074756,0.15417085,99286.0,99277.0,0.151091]
[1738682074959,0.00309285,99279.0,99258.0,0.00120863]
[1738682075287,0.01,99282.0,99259.0,0.30387606]
[1738682075492,0.00309285,99274.0,99260.0,0.201491]
[1738682075656,0.00309285,99274.0,99261.0,0.10238506]
[1738682076032,0.01,99292.0,99262.0,0.01144729]
[1738682076238,0.15,99307.0,99251.0,0.0001072]
[1738682076239,0.00309285,99274.0,99263.0,0.10238506]
[1738682076439,0.00309285,99260.0,99258.0,0.001]
[1738682076644,0.08030355,99280.0,99251.0,0.0001072]
[1738682076645,0.15422285,99252.0,99251.0,0.0001072]
[1738682076850,1.67964513,99252.0,99251.0,0.0001072]
[1738682077023,1.76660791,99252.0,99251.0,0.0001072]
[1738682077233,1.66422285,99252.0,99251.0,0.0001072]
[1738682077461,1.76660791,99252.0,99251.0,0.0001072]
[1738682077871,1.76660791,99252.0,99251.0,0.00057714]
[1738682078526,1.86910263,99252.0,99251.0,0.00057714]
[1738682078910,1.76660791,99252.0,99251.0,0.00057714]
[1738682079964,1.76660791,99252.0,99251.0,0.00157714]
[1738682080173,1.65422285,99252.0,99251.0,0.00157714]
[1738682080395,0.01309285,99252.0,99251.0,0.00157714]
[1738682080600,0.00309285,99252.0,99251.0,0.15270814]
[1738682080813,0.00309285,99265.0,99264.0,0.151112]
[1738682081019,0.00309285,99278.0,99265.0,0.20148]
[1738682081222,0.00309285,99292.0,99289.0,0.201431]
[1738682081427,0.01,99296.0,99295.0,0.151065]
[1738682081632,0.00309285,99300.0,99267.0,0.01035939]
[1738682081843,0.00309285,99300.0,99299.0,0.151058]
[1738682082259,0.00309285,99300.0,99219.0,1.007865]
[1738682082260,0.00309285,99308.0,99307.0,0.151046]
[1738682082463,0.00309285,99305.0,99304.0,0.151051]
[1738682082665,0.00014066,99300.0,99299.0,0.151058]
[1738682083025,0.00014066,99300.0,99299.0,0.25465142]
[1738682083255,0.00309285,99298.0,99277.0,0.201454]
[1738682083458,0.00014066,99300.0,99254.0,0.0807]
[1738682083459,0.00309285,99291.0,99278.0,0.10238506]
[1738682083664,0.00309285,99291.0,99287.0,0.151076]
[1738682083867,0.00309285,99291.0,99289.0,0.151073]
[1738682084138,0.50309285,99291.0,99289.0,0.151073]
[1738682084343,0.5,99291.0,99289.0,0.151073]
[1738682084761,0.5,99291.0,99290.0,0.10238506]
[1738682085169,0.5,99291.0,99289.0,0.151073]
[1738682085377,0.5,99291.0,99255.0,0.201501]
[1738682085378,0.00309285,99281.0,99255.0,0.201501]
[1738682085584,0.00309285,99279.0,99277.0,0.151092]
[1738682085817,2.0,99291.0,99288.0,0.201433]
[1738682086023,0.5,99291.0,99290.0,0.151072]
[1738682086226,0.5,99291.0,99290.0,0.25345706]
[1738682087656,0.5,99291.0,99290.0,0.001]
[1738682087657,0.50309285,99291.0,99290.0,0.001]
[1738682087830,0.5,99291.0,99290.0,0.10238506]
[1738682088279,0.5,99291.0,99290.0,0.001]
[1738682088280,2.00309285,99291.0,99290.0,0.001]
[1738682088898,0.5,99291.0,99290.0,0.10338506]
[1738682089227,0.50309285,99291.0,99290.0,0.001]
[1738682089443,0.50309285,99291.0,99289.0,0.151073]
[1738682089444,0.00309285,99281.0,99270.0,0.201469]
[1738682089689,0.00309285,99279.0,99263.0,0.201484]
[1738682089873,0.01456854,99279.0,99248.0,0.0001072]
[1738682090434,0.01456854,99279.0,99257.0,0.201495]
[1738682090587,0.01456854,99279.0,99248.0,0.0001072]
[1738682091008,0.01456854,99279.0,99278.0,0.0011073]
[1738682091216,0.00309285,99279.0,99278.0,0.2015603]
[1738682091537,0.00309285,99281.0,99280.0,0.151086]
[1738682091935,0.00309285,99279.0,99278.0,0.0001073]
[1738682092487,0.01309285,99279.0,99278.0,0.0001073]
[1738682092696,0.01309285,99279.0,99278.0,0.0011073]
[1738682092897,1.56980043,99279.0,99278.0,0.0011073]
[1738682093100,1.51309285,99279.0,99278.0,0.0001073]
[1738682093238,1.51309285,99279.0,99278.0,0.0011073]
[1738682093489,1.51309285,99279.0,99278.0,0.0001073]
[1738682093490,0.01309285,99279.0,99278.0,0.0001073]
[1738682093898,0.00309285,99279.0,99278.0,0.0011073]
[1738682094096,1.5,99279.0,99278.0,0.0001073]
[1738682094440,0.00309285,99281.0,99279.0,0.151089]
[1738682094595,0.00309285,99281.0,99278.0,0.1521963]
[1738682094796,0.01309285,99293.0,99279.0,0.10238506]
[1738682095002,0.00309285,99283.0,99278.0,0.0011073]
[1738682095198,10.00309285,99279.0,99278.0,0.0011073]
[1738682095565,11.65418185,99279.0,99278.0,0.0011073]
[1738682095680,11.66418185,99279.0,99278.0,0.0001073]
[1738682096224,11.66418185,99279.0,99278.0,0.0011073]
[1738682096407,11.66418185,99279.0,99278.0,0.0001073]
[1738682096603,11.65418185,99279.0,99278.0,0.0011073]
[1738682096810,10.01309285,99279.0,99278.0,0.0011073]
[1738682097011,10.01309285,99279.0,99278.0,0.0001073]
[1738682097449,10.11547791,99279.0,99278.0,0.0011073]
[1738682097671,0.151128,99253.0,99251.0,0.0001072]
[1738682097812,0.00309285,99252.0,99251.0,0.0001072]
[1738682098009,0.01,99254.0,99251.0,0.0001072]
[1738682098208,10.01,99279.0,99252.0,0.10238506]
[1738682098468,0.00309285,99277.0,99253.0,0.01146874]
[1738682098770,0.00309285,99278.0,99276.0,0.151093]
[1738682098947,10.0,99279.0,99278.0,0.15109]
[1738682099133,10.0,99279.0,99278.0,0.15209]
[1738682099332,0.151115,99262.0,99254.0,0.10238506]
[1738682099566,0.01,99255.0,99254.0,0.10238506]
[1738682099717,0.01309285,99254.0,99253.0,0.00146994]
[1738682099924,0.1396964,99254.0,99253.0,0.00046994]
[1738682100127,0.24038474,99254.0,99253.0,0.00046994]
[1738682100343,0.01,99252.0,99220.0,0.0001072]
[1738682100729,0.00309285,99252.0,99224.0,0.201564]
[1738682100944,0.151128,99253.0,99226.0,0.201558]
[1738682101161,0.01169285,99252.0,99234.0,0.201541]
[1738682101364,0.1718263,99252.0,99220.0,0.0001072]
[1738682101599,0.1155536,99252.0,99220.0,0.0001072]
[1738682101792,0.151128,99253.0,99220.0,0.0001072]
[1738682101927,0.01169285,99252.0,99233.0,0.151158]
[1738682102129,0.01316854,99252.0,99220.0,0.0001072]
[1738682102338,0.1155536,99252.0,99220.0,0.0001072]
[1738682102539,1.6155536,99252.0,99251.0,0.0011072]
[1738682102743,1.51967337,99252.0,99251.0,0.0011072]
[1738682102951,0.01169285,99252.0,99251.0,0.0001072]
[1738682103152,0.201501,99255.0,99251.0,0.0001072]
[1738682103153,0.00309285,99265.0,99251.0,0.0001072]
[1738682103372,0.10632,99280.0,99264.0,0.151111]
[1738682103373,0.00309285,99273.0,99264.0,0.151111]
[1738682103571,0.16281985,99254.0,99253.0,0.0012088]
[1738682103772,0.16282285,99252.0,99251.0,0.0001072]
[1738682104131,0.16429854,99252.0,99251.0,0.0011072]
[1738682104267,1.66282285,99252.0,99251.0,0.0011072]
[1738682104876,0.0086,99252.0,99251.0,0.0011072]
[1738682105082,0.0086,99255.0,99251.0,0.0011072]
[1738682105295,0.0086,99255.0,99252.0,0.30389206]
[1738682105494,0.00309285,99268.0,99253.0,0.00120893]
[1738682105868,0.0086,99281.0,99270.0,0.201469]
[1738682106075,0.21313385,99285.0,99271.0,0.10359373]
[1738682106277,0.00309285,99281.0,99271.0,0.10238506]
[1738682106487,0.0086,99281.0,99272.0,0.201466]
[1738682106691,0.5,99291.0,99290.0,0.151072]
[1738682106902,0.5,99291.0,99274.0,0.151096]
[1738682106903,0.151082,99284.0,99274.0,0.151096]
[1738682107103,0.00309285,99276.0,99262.0,0.151114]
[1738682107312,0.0086,99272.0,99263.0,0.10238506]
[1738682107520,0.0086,99289.0,99264.0,0.00120874]
[1738682107726,0.0086,99286.0,99271.0,0.10238506]
[1738682107938,0.50014072,99291.0,99290.0,0.151072]
[1738682108146,0.50014072,99291.0,99290.0,0.25345706]
[1738682108529,0.50014072,99291.0,99290.0,0.10238506]
[1738682108783,0.50014072,99291.0,99256.0,0.0795]
[1738682108995,0.0086,99286.0,99272.0,0.002]
[1738682109265,0.50014072,99291.0,99289.0,0.151073]
[1738682109513,0.50014072,99291.0,99290.0,0.10238506]
[1738682109758,0.50014072,99291.0,99290.0,0.10438506]
[1738682110001,0.50014072,99291.0,99290.0,0.10338506]
[1738682110249,0.50014072,99291.0,99290.0,0.10238506]
[1738682110759,0.50014072,99291.0,99290.0,0.1265935]
[1738682111032,0.307674,99328.0,99290.0,0.1265935]
[1738682111033,0.06175316,99337.0,99320.0,0.201368]
[1738682111227,0.06175316,99337.0,99321.0,0.10359299]
[1738682111437,0.0001407,99324.0,99321.0,0.10359299]
[1738682111644,0.0001407,99324.0,99323.0,0.151022]
[1738682111855,0.0001407,99324.0,99323.0,0.25340706]
[1738682112989,0.0001407,99324.0,99323.0,0.10238506]
[1738682113240,0.0001407,99324.0,99323.0,0.25461496]
[1738682113490,0.0001407,99324.0,99323.0,0.25440706]
[1738682113941,0.0001407,99324.0,99323.0,0.40440706]
[1738682114150,0.0001407,99324.0,99323.0,0.40540706]
[1738682114354,0.0001407,99324.0,99323.0,0.25440706]
[1738682114743,0.0001407,99324.0,99323.0,0.10338506]
[1738682115360,0.0002476,99324.0,99323.0,0.25459304]
[1738682115565,0.0002476,99324.0,99323.0,0.25338506]
[1738682115979,1.564644,99348.0,99326.0,0.201357]
[1738682116210,1.56511289,99348.0,99343.0,0.150991]
[1738682116415,0.00046889,99348.0,99347.0,0.150985]
[1738682116625,0.00046889,99348.0,99347.0,0.25337006]
[1738682117448,0.00046889,99348.0,99347.0,0.10238506]
[1738682118513,0.00046889,99348.0,99347.0,0.25359275]
[1738682118725,0.08030355,99383.0,99348.0,0.173]
[1738682118932,0.08030355,99383.0,99348.0,0.42776906]
[1738682119149,0.08030355,99383.0,99382.0,0.150932]
[1738682119359,0.08044419,99383.0,99382.0,0.25331706]
[1738682119563,0.00014064,99383.0,99382.0,0.25331706]
[1738682120212,10.0,99400.0,99399.0,0.150906]
[1738682120414,6.91008769,99400.0,99399.0,0.50699106]
[1738682120617,3.91048769,99400.0,99399.0,0.50699106]
[1738682120998,3.89148769,99400.0,99399.0,0.40329106]
[1738682121456,3.89148769,99400.0,99399.0,0.25329106]
[1738682122291,3.89148769,99400.0,99399.0,0.10238506]
[1738682122926,3.89148769,99400.0,99370.0,0.31517856]
[1738682122927,0.0086,99396.0,99358.0,0.12940355]
[1738682123135,0.0086,99396.0,99374.0,0.10238506]
[1738682123354,0.0086,99395.0,99374.0,0.10238506]
[1738682123561,0.0086,99395.0,99378.0,0.10238506]
[1738682123826,0.0086,99394.0,99379.0,0.00120719]
[1738682124029,1.5,99385.0,99380.0,0.10238506]
[1738682124236,0.150931,99383.0,99380.0,0.10238506]
[1738682124441,0.150931,99383.0,99370.0,0.00014064]
[1738682124442,0.0086,99385.0,99370.0,0.00014064]
[1738682124704,0.201255,99376.0,99371.0,0.10238506]
[1738682124903,0.150947,99372.0,99370.0,0.00014064]
[1738682125111,0.01007569,99371.0,99370.0,0.00014064]
[1738682125524,1.51007569,99371.0,99370.0,0.00014064]
[1738682125734,1.5086,99371.0,99370.0,0.00014064]
[1738682126580,1.61098506,99371.0,99370.0,0.00014064]
[1738682126784,1.5086,99371.0,99370.0,0.00014064]
[1738682126987,1.61098506,99371.0,99370.0,0.00014064]
[1738682127597,1.76098506,99371.0,99370.0,0.00014064]
[1738682128031,0.151011,99331.0,99327.0,0.00022428]
[1738682128260,0.201315,99347.0,99327.0,0.00022428]
[1738682128261,0.0086,99328.0,99327.0,0.00022428]
[1738682129404,0.0086,99328.0,99327.0,0.00069317]
[1738682130533,0.0086,99345.0,99327.0,0.10307823]
[1738682130750,0.08030355,99357.0,99350.0,0.15098]
[1738682130958,0.0086,99338.0,99328.0,0.10238506]
[1738682131169,0.150993,99342.0,99328.0,0.25339906]
[1738682131374,0.0086,99338.0,99329.0,0.151011]
[1738682131582,0.08030355,99375.0,99329.0,0.10359315]
[1738682131783,0.0086,99361.0,99358.0,0.150968]
[1738682131988,0.0086,99360.0,99359.0,0.10238506]
[1738682132191,0.08030355,99375.0,99359.0,0.10238506]
[1738682132401,0.08030355,99375.0,99368.0,0.150953]
[1738682132600,0.0086,99366.0,99359.0,0.10238506]
[1738682132717,0.0086,99366.0,99363.0,0.15096]
[1738682132920,0.0086,99366.0,99364.0,0.150958]
[1738682133121,0.0086,99374.0,99365.0,0.10359269]
[1738682133325,0.00014051,99386.0,99365.0,0.10238506]
[1738682133530,0.0086,99378.0,99367.0,0.201274]
[1738682133744,0.00014051,99386.0,99348.0,0.201311]
[1738682133745,0.00014051,99386.0,99384.0,0.150928]
[1738682133975,0.0086,99385.0,99368.0,0.00120746]
[1738682134187,0.0086,99373.0,99327.0,0.02076132]
[1738682134386,0.0086,99360.0,99342.0,0.10238506]
[1738682134594,0.0086,99357.0,99356.0,0.150972]
[1738682134793,0.150953,99369.0,99356.0,0.10238506]
[1738682135035,0.0086,99363.0,99357.0,0.10238506]
[1738682135267,0.0086,99367.0,99361.0,0.150964]
[1738682135445,0.0086,99367.0,99365.0,0.150957]
[1738682135655,0.0086,99379.0,99366.0,0.10359259]
[1738682135851,0.0086,99384.0,99366.0,0.10238506]
[1738682136277,0.150934,99381.0,99371.0,0.150949]
[1738682136481,0.150934,99381.0,99356.0,0.201296]
[1738682136482,0.0086,99389.0,99385.0,0.150928]
[1738682136688,0.0087068,99394.0,99385.0,0.25331306]
[1738682137096,0.0001068,99394.0,99385.0,0.25331306]
[1738682138678,0.0001068,99394.0,99385.0,0.40331306]
[1738682139117,0.0001068,99394.0,99385.0,0.42631306]
[1738682139901,0.0001068,99394.0,99385.0,0.40331306]
[1738682140129,0.0087068,99394.0,99385.0,0.10238506]
[1738682140343,0.0001068,99394.0,99385.0,0.25331306]
[1738682140549,0.00024721,99386.0,99385.0,0.40331306]
[1738682140750,0.00024721,99386.0,99385.0,0.42631306]
[1738682141606,0.201135,99436.0,99385.0,0.42631306]
[1738682141607,0.07093334,99421.0,99420.0,0.150875]
[1738682141797,0.07093334,99421.0,99420.0,0.10238506]
[1738682141954,1.50874056,99421.0,99420.0,0.10238506]
[1738682142152,1.50874056,99421.0,99399.0,0.1]
[1738682142369,0.0086,99417.0,99400.0,0.10238506]
[1738682142598,0.00014056,99421.0,99420.0,0.150875]
[1738682142785,0.00014056,99421.0,99420.0,0.10238506]
[1738682143120,0.0086,99417.0,99406.0,0.201194]
[1738682143329,0.15089,99410.0,99407.0,0.10238506]
[1738682143524,0.0086,99414.0,99407.0,0.10238506]
[1738682143688,0.0086,99408.0,99407.0,0.10238506]
[1738682143888,0.0086,99409.0,99408.0,0.150893]
[1738682144135,0.0086,99409.0,99408.0,0.25327806]
[1738682144646,0.0086,99416.0,99408.0,0.10238506]
[1738682144803,0.0086,99416.0,99415.0,0.150882]
[1738682145004,0.0086,99416.0,99415.0,0.10238506]
[1738682145005,0.00850971,99416.0,99415.0,0.10238506]
[1738682145211,0.01334828,99416.0,99370.0,0.31517856]
[1738682145420,0.01334828,99416.0,99326.0,1.548878]
[1738682145421,0.00850971,99400.0,99371.0,0.08030355]
[1738682145619,0.00850971,99400.0,99372.0,0.00120724]
[1738682145827,0.01334842,99400.0,99386.0,0.201235]
[1738682146050,0.00483871,99400.0,99399.0,0.20238506]
[1738682146620,0.00850971,99413.0,99399.0,0.20238506]
[1738682146825,0.201161,99423.0,99400.0,0.10359211]
[1738682147035,0.00850971,99415.0,99400.0,0.10359211]
[1738682147234,0.00850971,99415.0,99413.0,0.150884]
[1738682147440,0.00850971,99400.0,99399.0,0.1]
[1738682147661,0.15941471,99400.0,99399.0,0.1]
[1738682147990,0.164198,99400.0,99399.0,0.1]
[1738682148633,0.16567369,99400.0,99399.0,0.1]
[1738682148833,0.164198,99400.0,99399.0,0.1]
[1738682149307,0.26805875,99400.0,99399.0,0.1]
[1738682149515,0.53455306,99400.0,99399.0,0.079879]
[1738682149728,0.00850971,99348.0,99327.0,0.08052783]
[1738682149928,0.00850971,99348.0,99339.0,0.10238506]
[1738682150133,0.00850971,99344.0,99339.0,0.10238506]
[1738682150365,0.151008,99333.0,99327.0,0.00022428]
[1738682150583,0.15952371,99328.0,99327.0,0.00022428]
[1738682150986,0.16550156,99328.0,99327.0,0.00022428]
[1738682151403,1.82825662,99328.0,99327.0,0.00069317]
[1738682151581,2.16887565,99328.0,99327.0,0.00069317]
[1738682152022,2.06187877,99328.0,99327.0,0.00069317]
[1738682152231,2.17187877,99328.0,99327.0,1.7e-07]
[1738682152439,0.15956671,99300.0,99299.0,0.00022407]
[1738682152856,0.1610424,99300.0,99299.0,0.00022407]
[1738682153064,0.32379746,99300.0,99299.0,0.00022407]
[1738682153272,1.95071439,99300.0,99299.0,0.00022407]
[1738682153475,1.95889389,99300.0,99299.0,0.00022407]
[1738682153683,1.92013127,99300.0,99299.0,0.00022407]
[1738682154069,1.76949075,99300.0,99299.0,0.00022407]
[1738682154314,1.7446657,99300.0,99299.0,0.00022407]
[1738682154518,0.28462156,99300.0,99299.0,0.00022407]
[1738682154937,0.1592365,99300.0,99299.0,0.00022407]
[1738682155139,0.15253269,99300.0,99299.0,0.00022407]
[1738682155554,0.2976225,99300.0,99299.0,0.00022407]
[1738682155763,0.29614681,99300.0,99299.0,0.00022407]
[1738682155973,0.29714681,99300.0,99299.0,0.00022407]
[1738682156182,0.29614681,99300.0,99299.0,0.00022407]
[1738682157220,0.19376175,99300.0,99299.0,0.00022407]
[1738682157435,0.19523744,99300.0,99299.0,0.00022407]
[1738682157640,0.2976225,99300.0,99299.0,0.00022407]
[1738682157838,0.3567801,99300.0,99299.0,0.00022407]
[1738682158043,0.29614681,99300.0,99299.0,0.00022407]
[1738682158245,0.19376175,99300.0,99299.0,0.00022407]
[1738682158445,0.19523744,99300.0,99299.0,0.00022407]
[1738682159198,0.19623744,99300.0,99299.0,0.00022407]
[1738682159596,0.2976225,99300.0,99299.0,0.00022407]
[1738682159967,1.94714681,99300.0,99299.0,0.00022407]
[1738682160188,1.94614681,99300.0,99299.0,0.00022407]
[1738682160803,1.79614681,99300.0,99299.0,0.00022407]
[1738682161007,0.17076175,99300.0,99299.0,0.00022407]
[1738682161220,0.201434,99288.0,99245.0,0.15114]
[1738682161426,0.201452,99279.0,99255.0,0.151125]
[1738682161630,0.02878212,99290.0,99256.0,0.10238506]
[1738682161631,0.201475,99268.0,99256.0,0.10238506]
[1738682161849,0.00996,99278.0,99256.0,0.10238506]
[1738682162088,0.018497,102400.0,99256.0,0.10238506]
[1738682162285,0.02054252,99348.0,99343.0,0.01]
[1738682162498,0.201316,99346.0,99330.0,0.01]
[1738682162701,0.151007,99333.0,99332.0,0.01]
[1738682162903,0.151007,99333.0,99268.0,0.0019]
[1738682162904,0.201344,99332.0,99320.0,0.01]
[1738682163125,1.5,99333.0,99310.0,0.02]
[1738682163126,0.00147569,99331.0,99310.0,0.02]
[1738682163331,0.151027,99320.0,99310.0,0.02]
[1738682163532,0.151027,99320.0,99284.0,0.1987]
[1738682163533,0.00147569,99339.0,99320.0,0.01]
[1738682163746,0.00046823,99332.0,99322.0,0.01]
[1738682163970,0.00046823,99332.0,99320.0,0.01]
[1738682163971,0.00046823,99332.0,99325.0,0.01]
[1738682164174,0.00046823,99332.0,99331.0,0.02]
[1738682164591,0.00046823,99332.0,99323.0,0.01]
[1738682164800,0.20137,99320.0,99311.0,0.01]
[1738682165009,0.00147569,99331.0,99320.0,0.001]
[1738682165216,0.00046823,99332.0,99331.0,0.17101]
[1738682165624,0.00046823,99332.0,99331.0,0.001]
[1738682165951,0.00046823,99332.0,99329.0,0.01]
[1738682166176,0.00046823,99332.0,99331.0,0.11238506]
[1738682167466,0.00046823,99332.0,99331.0,0.26339506]
[1738682167675,0.00046823,99332.0,99331.0,0.11238506]
[1738682168004,0.00046823,99332.0,99331.0,0.11338506]
[1738682168209,0.00046823,99332.0,99331.0,0.12359305]
[1738682168418,1.50046823,99332.0,99331.0,0.12359305]
[1738682168554,1.50046823,99332.0,99331.0,0.12338506]
[1738682168762,1.50046823,99332.0,99331.0,0.12238506]
[1738682169230,1.50046823,99332.0,99331.0,0.12338506]
[1738682169445,1.50046823,99332.0,99331.0,0.12238506]
[1738682169804,1.50046823,99332.0,99331.0,0.12338506]
[1738682170232,1.50046823,99332.0,99331.0,0.26439506]
[1738682170444,1.50046823,99332.0,99331.0,0.12338506]
[1738682170638,1.50046823,99332.0,99305.0,0.01]
[1738682170842,1.50046823,99332.0,99227.0,0.54232407]
[1738682170843,0.00147569,99331.0,99306.0,0.10238506]
[1738682171040,0.31517856,99330.0,99298.0,0.01]
[1738682171299,0.00046823,99332.0,99308.0,0.01]
[1738682171434,0.00046823,99332.0,99309.0,0.10238506]
[1738682171660,0.00046823,99332.0,99313.0,0.01]
[1738682171888,0.00046823,99332.0,99314.0,0.10238506]
[1738682172122,0.00046823,99332.0,99316.0,0.01]
[1738682172265,0.151014,99328.0,99317.0,0.10238506]
[1738682172665,0.00046823,99332.0,99317.0,0.10238506]
[1738682172919,1.5,99318.0,99317.0,0.10238506]
[1738682173355,1.5,99318.0,99317.0,0.26341606]
[1738682175873,1.5,99318.0,99278.0,0.0759]
[1738682176139,1.5,99318.0,99285.0,0.10238506]
[1738682176140,0.00147569,99317.0,99285.0,0.10238506]
[1738682176391,0.00835577,99321.0,99309.0,0.01]
[1738682176607,0.151035,99315.0,99309.0,0.01]
[1738682176837,0.0805384,99320.0,99299.0,0.01]
[1738682176838,0.00147569,99314.0,99299.0,0.01]
[1738682177069,1.5,99300.0,99299.0,0.01]
[1738682177543,1.651057,99300.0,99299.0,0.01]
[1738682177802,0.201411,99299.0,99271.0,0.01]
[1738682178065,0.201411,99299.0,99251.0,0.0001072]
[1738682178066,0.151102,99271.0,99254.0,0.201502]
[1738682178318,0.00147569,99270.0,99251.0,0.0001072]
[1738682178537,0.15,99292.0,99251.0,0.0001072]
[1738682178538,1.5,99264.0,99261.0,0.151115]
[1738682178744,1.5,99264.0,99262.0,0.10238506]
[1738682178977,1.5,99264.0,99256.0,0.01036458]
[1738682179244,0.151122,99257.0,99256.0,0.00036458]
[1738682179733,1.65259769,99257.0,99256.0,0.00036458]
[1738682179961,1.651122,99257.0,99256.0,0.00036458]
[1738682181261,1.5,99257.0,99256.0,0.00036458]
[1738682183656,0.201422,99294.0,99256.0,0.00036458]
[1738682183657,0.0825,99292.0,99256.0,0.10274964]
[1738682183867,0.151092,99277.0,99263.0,0.151113]
[1738682184074,0.201449,99281.0,99264.0,0.10238506]
[1738682184369,0.00147569,99277.0,99264.0,0.10238506]
[1738682184583,0.151099,99273.0,99264.0,0.10238506]
[1738682184811,0.0084518,99283.0,99264.0,0.10238506]
[1738682185020,0.31517856,99310.0,99273.0,0.01]
[1738682185236,0.201419,99296.0,99274.0,0.10238506]
[1738682185449,1.50147569,99295.0,99274.0,0.10238506]
[1738682185662,0.151089,99280.0,99274.0,0.10238506]
[1738682185868,0.201432,99289.0,99279.0,0.01]
[1738682186092,0.00147569,99288.0,99263.0,0.01]
[1738682186294,0.00147569,99288.0,99266.0,0.01]
[1738682186502,0.151107,99268.0,99263.0,0.01]
[1738682186716,0.151118,99261.0,99256.0,0.00036458]
[1738682186926,0.151122,99258.0,99256.0,0.00036458]
[1738682187141,0.00147569,99257.0,99256.0,0.00036458]
[1738682187352,1.50147569,99257.0,99256.0,0.00036458]
[1738682187557,1.5,99257.0,99256.0,0.00036458]
[1738682188615,0.15113,99252.0,99251.0,0.0001072]
[1738682188821,0.42799075,99252.0,99251.0,0.0002479]
[1738682189035,0.42651506,99252.0,99251.0,0.0002479]
[1738682189250,0.324148,99240.0,99239.0,9.67e-06]
[1738682189462,0.324148,99240.0,99239.0,0.00015039]
[1738682189463,1.94141306,99240.0,99239.0,0.00015039]
[1738682189678,1.801148,99240.0,99239.0,0.00015039]
[1738682189890,1.651148,99240.0,99239.0,0.00015039]
[1738682190105,1.674148,99240.0,99239.0,0.00015039]
[1738682190318,1.92653306,99240.0,99239.0,0.00015039]
[1738682190536,1.92653306,99240.0,99209.0,0.01]
[1738682190537,0.15116,99232.0,99209.0,0.01]
[1738682190772,0.15263569,99232.0,99231.0,0.00036487]
[1738682191035,0.25502075,99232.0,99231.0,0.00036487]
[1738682191266,0.58635544,99232.0,99231.0,8.7e-07]
[1738682191474,0.301209,99200.0,99199.0,0.00022407]
[1738682191679,0.301209,99200.0,99199.0,0.00069034]
[1738682191680,1.90359406,99200.0,99199.0,0.00069034]
[1738682191934,1.92659406,99200.0,99199.0,0.00046627]
[1738682192140,1.801209,99200.0,99199.0,0.00046627]
[1738682192573,1.80966149,99200.0,99199.0,0.00046627]
[1738682192821,1.82827272,99200.0,99199.0,0.00046627]
[1738682193089,0.15,99199.0,99130.0,0.31517856]
[1738682193324,0.151214,99197.0,99158.0,0.201698]
[1738682193562,0.151229,99187.0,99159.0,0.10359499]
[1738682193806,0.15124,99180.0,99159.0,0.10238506]
[1738682194081,0.00147569,99179.0,99159.0,0.10238506]
[1738682194293,0.31517856,99170.0,99129.0,0.201757]
[1738682194501,0.03299355,99169.0,99133.0,0.201747]
[1738682194710,0.201683,99166.0,99150.0,0.151285]
[1738682194925,0.00147569,99165.0,99134.0,0.10359534]
[1738682195132,1.5,99156.0,99134.0,0.10359534]
[1738682195346,0.0805384,99154.0,99134.0,0.10238506]
[1738682195552,0.00147569,99153.0,99134.0,0.10238506]
[1738682195760,0.00147569,99153.0,99127.0,0.00018752]
[1738682195761,0.151319,99128.0,99127.0,0.00018752]
[1738682195964,0.01990383,99135.0,99127.0,0.00018752]
[1738682196171,1.50147569,99134.0,99127.0,0.00018752]
[1738682196384,0.2318574,99128.0,99127.0,0.00018752]
[1738682196595,0.151319,99128.0,99127.0,0.00018752]
[1738682197023,0.33703658,99128.0,99127.0,0.00018752]
[1738682197229,0.40150932,99128.0,99127.0,0.00018752]
[1738682197439,0.1108778,99128.0,99127.0,0.00018752]
[1738682197654,0.11235349,99128.0,99127.0,0.00018752]
[1738682197864,0.26367249,99128.0,99127.0,0.00018752]
[1738682198075,0.2621968,99128.0,99127.0,0.00018752]
[1738682198494,0.3229991,99128.0,99127.0,0.00018752]
[1738682198722,0.151339,99115.0,99113.0,0.00018957]
[1738682198938,0.10386075,99114.0,99113.0,0.00018957]